{"text_format":"3","workbook":"xlsx","n_sheets":3,"sheets":["Seznam studentů","Třídní seznam","Podrobnosti studenta"],"not_rendered":{"images":2,"defined_names":8},"read":"whole","date_system":"1900"}

{"sheet":"Seznam studentů","index":0,"n_rows":8,"n_cols":13,"rows_kept":8,"merged":[[1,2,2,3],[1,4,1,11],[2,4,2,11],[6,12,8,16]]}
[]
[null,null,"Seznam studentů",null,"PŘEJÍT NA TŘÍDNÍ SEZNAM"]
[{"$nulls":4},"PŘEJÍT NA PODROBNOSTI STUDENTA"]
[null,null,"JMÉNO STUDENTA","E-MAIL","TELEFON DOMŮ","MOBILNÍ TELEFON","DATUM NAROZENÍ","NOUZOVÝ KONTAKT","TELEFON NOUZOVÉHO KONTAKTU","OŠETŘUJÍCÍ LÉKAŘ","TELEFON OŠETŘUJÍCÍHO LÉKAŘE","  "]
[null,null,"Jméno 1","E-mailová adresa","Telefon domů","Mobilní telefon","Datum","Kontakt 1","Telefon nouzového kontaktu","Ošetřující lékař 1","Telefon ošetřujícího lékaře"]
[null,null,"Jméno 2","E-mailová adresa","Telefon domů","Mobilní telefon","Datum","Kontakt 2","Telefon nouzového kontaktu","Ošetřující lékař 2","Telefon ošetřujícího lékaře"]
[null,null,"Jméno 3","E-mailová adresa","Telefon domů","Mobilní telefon","Datum","Kontakt 3","Telefon nouzového kontaktu","Ošetřující lékař 3","Telefon ošetřujícího lékaře",null,"Tip: Pokud chcete do tabulky přidat další studenty, přejděte do poslední buňky tabulky a stiskněte klávesu tabulátoru."]
[null,null,"Jméno 4","E-mailová adresa","Telefon domů","Mobilní telefon","Datum","Kontakt 4","Telefon nouzového kontaktu","Ošetřující lékař 4","Telefon ošetřujícího lékaře"]

{"sheet":"Třídní seznam","index":1,"n_rows":12,"n_cols":7,"rows_kept":12,"merged":[[1,2,2,2],[1,3,2,3],[1,4,1,6],[2,4,2,6]]}
[]
[null,null,"Třídní seznam","Institut grafického designu","PŘEJÍT NA SEZNAM STUDENTŮ"]
[{"$nulls":4},"PŘEJÍT NA PODROBNOSTI STUDENTA"]
[null,null,"KURZ","Název kurzu","DATUM ZAČÁTKU","Datum"]
[null,null,"VYUČUJÍCÍ","Vyučující 1","DATUM KONCE","Datum"]
[null,null,"PŘIHLÁŠENÍ STUDENTI",{"$f":"COUNTA(SoupisStudentů[JMÉNO STUDENTA])","v":4}]
[]
[null,null,"JMÉNO STUDENTA","E-MAIL","TELEFON DOMŮ","MOBILNÍ TELEFON","  "]
[null,null,"Jméno 1",{"$f":"IFERROR(VLOOKUP(SoupisStudentů[[#This Row],[JMÉNO STUDENTA]],Studenti[],2),\"\")","v":"E-mailová adresa"},{"$f":"IFERROR(VLOOKUP(SoupisStudentů[[#This Row],[JMÉNO STUDENTA]],Studenti[],3),\"\")","v":"Telefon domů"},{"$f":"IFERROR(VLOOKUP(SoupisStudentů[[#This Row],[JMÉNO STUDENTA]],Studenti[],4),\"\")","v":"Mobilní telefon"}]
[null,null,"Jméno 2",{"$f":"IFERROR(VLOOKUP(SoupisStudentů[[#This Row],[JMÉNO STUDENTA]],Studenti[],2),\"\")","v":"E-mailová adresa"},{"$f":"IFERROR(VLOOKUP(SoupisStudentů[[#This Row],[JMÉNO STUDENTA]],Studenti[],3),\"\")","v":"Telefon domů"},{"$f":"IFERROR(VLOOKUP(SoupisStudentů[[#This Row],[JMÉNO STUDENTA]],Studenti[],4),\"\")","v":"Mobilní telefon"}]
[null,null,"Jméno 3",{"$f":"IFERROR(VLOOKUP(SoupisStudentů[[#This Row],[JMÉNO STUDENTA]],Studenti[],2),\"\")","v":"E-mailová adresa"},{"$f":"IFERROR(VLOOKUP(SoupisStudentů[[#This Row],[JMÉNO STUDENTA]],Studenti[],3),\"\")","v":"Telefon domů"},{"$f":"IFERROR(VLOOKUP(SoupisStudentů[[#This Row],[JMÉNO STUDENTA]],Studenti[],4),\"\")","v":"Mobilní telefon"}]
[null,null,"Jméno 4",{"$f":"IFERROR(VLOOKUP(SoupisStudentů[[#This Row],[JMÉNO STUDENTA]],Studenti[],2),\"\")","v":"E-mailová adresa"},{"$f":"IFERROR(VLOOKUP(SoupisStudentů[[#This Row],[JMÉNO STUDENTA]],Studenti[],3),\"\")","v":"Telefon domů"},{"$f":"IFERROR(VLOOKUP(SoupisStudentů[[#This Row],[JMÉNO STUDENTA]],Studenti[],4),\"\")","v":"Mobilní telefon"}]

{"sheet":"Podrobnosti studenta","index":2,"n_rows":13,"n_cols":4,"rows_kept":13,"merged":[[1,2,2,2],[1,3,1,4],[2,3,2,4],[3,2,3,3]]}
[]
[null,null,"Podrobnosti studenta","PŘEJÍT NA SEZNAM STUDENTŮ"]
[{"$nulls":3},"PŘEJÍT NA TŘÍDNÍ SEZNAM"]
[null,null,"TIP: POKUD CHCETE AKTUALIZOVAT PODROBNOSTI STUDENTA, VYBERTE JEHO JMÉNO V ROZEVÍRACÍM SEZNAMU V BUŇCE D5."]
[null,null,"JMÉNO STUDENTA","Jméno 1"]
[null,null,"E-MAIL",{"$f":"IFERROR(VLOOKUP(JménoStudenta,Studenti[],2,FALSE),\"\")","v":"E-mailová adresa"}]
[null,null,"TELEFON DOMŮ",{"$f":"IFERROR(VLOOKUP(JménoStudenta,Studenti[],3,FALSE),\"\")","v":"Telefon domů"}]
[null,null,"MOBILNÍ TELEFON",{"$f":"IFERROR(VLOOKUP(JménoStudenta,Studenti[],4,FALSE),\"\")","v":"Mobilní telefon"}]
[null,null,"DATUM NAROZENÍ",{"$f":"IFERROR(VLOOKUP(JménoStudenta,Studenti[],5,FALSE),\"\")","v":"Datum"}]
[null,null,"NOUZOVÝ KONTAKT",{"$f":"IFERROR(VLOOKUP(JménoStudenta,Studenti[],6,FALSE),\"\")","v":"Kontakt 1"}]
[null,null,"TELEFON NOUZOVÉHO KONTAKTU",{"$f":"IFERROR(VLOOKUP(JménoStudenta,Studenti[],7,FALSE),\"\")","v":"Telefon nouzového kontaktu"}]
[null,null,"OŠETŘUJÍCÍ LÉKAŘ",{"$f":"IFERROR(VLOOKUP(JménoStudenta,Studenti[],8,FALSE),\"\")","v":"Ošetřující lékař 1"}]
[null,null,"TELEFON OŠETŘUJÍCÍHO LÉKAŘE",{"$f":"IFERROR(VLOOKUP(JménoStudenta,Studenti[],9,FALSE),\"\")","v":"Telefon ošetřujícího lékaře"}]